bitfinex/quotes_SOLUSD_20250908
["timestamp","ask_amount","ask_price","bid_price","bid_amount"]
[1757316856760,17.31147703,208.93,208.92,0.03]
[1757316856973,13.59559401,208.92,208.84,3.71588302]
[1757316857285,3.71588302,208.89,208.84,3.71588302]
[1757316857476,38.43,208.88,208.84,26.0]
[1757316857652,0.69,208.87,208.84,3.71588302]
[1757316857852,0.69,208.86,208.84,3.71588302]
[1757316858051,38.43,208.85,208.83,3.71588302]
[1757316858272,37.74,208.85,208.83,3.71588302]
[1757316858582,38.43,208.85,208.84,2.67148689]
[1757316858752,38.41,208.85,208.84,2.67148689]
[1757316859150,38.41,208.85,208.84,28.67148689]
[1757316860172,0.69,208.92,208.84,36.54904489]
[1757316860374,37.74,208.91,208.9,2.37926734]
[1757316860761,37.74,208.91,208.9,5.05075423]
[1757316862385,0.69,208.93,208.9,9.83756865]
[1757316862590,37.74,208.91,208.9,4.78681442]
[1757316862872,37.74,208.91,208.9,7.45347103]
[1757316863071,37.7,208.91,208.9,2.66665661]
[1757316863256,0.69,208.91,208.89,26.0]
[1757316863458,38.39,208.9,208.89,26.0]
[1757316863860,38.39,208.9,208.89,33.16647591]
[1757316864064,38.41,208.9,208.89,33.16647591]
[1757316864479,0.69,208.9,208.89,33.16647591]
[1757316864669,37.7,208.9,208.89,35.8334332]
[1757316865284,0.69,208.92,208.89,2.37926734]
[1757316865473,37.7,208.91,208.89,2.37926734]
[1757316865674,0.69,208.91,208.89,2.37926734]
[1757316865872,38.39,208.9,208.89,2.37926734]
[1757316866061,38.43,208.9,208.89,2.37926734]
[1757316866764,0.69,208.9,208.89,7.16647591]
[1757316867080,37.74,208.9,208.89,7.16647591]
[1757316867478,37.74,208.9,208.89,2.37926734]
[1757316867676,38.43,208.9,208.89,2.37926734]
[1757316867870,38.43,208.9,208.88,2.37926734]
[1757316868068,0.69,208.89,208.86,28.37926734]
[1757316868272,0.69,208.88,208.86,28.37926734]
[1757316868484,37.74,208.9,208.86,28.37926734]
[1757316868673,0.69,208.87,208.86,28.37926734]
[1757316868979,0.69,208.87,208.86,35.83410702]
[1757316869187,0.69,208.89,208.86,33.45483968]
[1757316869376,38.43,208.88,208.87,2.37926734]
[1757316870375,38.43,208.88,208.85,26.0]
[1757316870682,38.43,208.88,208.86,28.37926734]
[1757316871969,38.43,208.88,208.85,4.78810523]
[1757316871970,14.28559401,208.87,208.79,0.71]
[1757316872175,14.28559401,208.87,208.84,2.37926734]
[1757316872369,0.69,208.86,208.84,2.37926734]
[1757316872792,37.74,208.85,208.84,2.37926734]
[1757316873173,37.74,208.85,208.84,28.37926734]
[1757316873569,0.69,208.86,208.84,28.37926734]
[1757316873865,38.43,208.85,208.84,28.37926734]
[1757316874065,37.74,208.85,208.84,28.37926734]
[1757316875284,13.59559401,208.84,208.76,0.71]
[1757316875482,0.71,208.83,208.78,2.37926734]
[1757316875789,0.71,208.82,208.81,0.03]
[1757316878107,0.71,208.84,208.81,2.40926734]
[1757316878289,0.71,208.83,208.81,2.40926734]
[1757316878793,37.7,208.82,208.81,0.03]
[1757316881467,38.41,208.82,208.81,0.03]
[1757316882793,37.7,208.82,208.81,0.03]
[1757316883172,38.41,208.82,208.81,0.03]
[1757316884276,54.38486135,208.82,208.81,0.03]
[1757316884581,59.17367468,208.82,208.81,0.03]
[1757316885187,54.38486135,208.82,208.81,0.03]
[1757316887093,59.17367468,208.82,208.81,0.03]
[1757316888380,54.38486135,208.82,208.81,0.03]
[1757316888790,59.17367468,208.82,208.81,0.03]
[1757316889313,68.69074404,208.82,208.81,0.03]
[1757316889600,13.59559401,208.81,208.74,0.2]
[1757316889788,15.10159531,208.82,208.74,4.99064865]
[1757316889990,51.33559401,208.81,208.78,2.37926734]
[1757316890198,13.59559401,208.81,208.79,2.37926734]
[1757316890385,37.74,208.8,208.79,2.37926734]
[1757316891780,37.74,208.8,208.78,4.78966115]
[1757316891984,13.59559401,208.81,208.78,7.16892849]
[1757316892191,37.72,208.8,208.78,7.16892849]
[1757316892400,37.72,208.8,208.76,31.45000752]
[1757316892604,38.43,208.8,208.77,2.37926734]
[1757316893125,14.30559401,208.79,208.76,2.37926734]
[1757316893282,37.72,208.78,208.76,2.37926734]
[1757316893600,38.43,208.78,208.77,26.0]
[1757316893989,37.72,208.78,208.77,26.0]
[1757316894505,37.72,208.78,208.76,2.40926734]
[1757316895099,38.43,208.78,208.76,2.40926734]
[1757316895295,38.43,208.78,208.77,26.0]
[1757316896309,38.43,208.78,208.76,2.40926734]
[1757316896490,38.43,208.78,208.77,26.0]
[1757316896687,0.71,208.78,208.77,26.0]
[1757316896890,38.39,208.78,208.77,26.0]
[1757316897091,38.39,208.78,208.76,7.19945587]
[1757316897291,38.39,208.78,208.76,33.19945587]
[1757316897611,37.68,208.78,208.77,2.37926734]
[1757316899316,13.59559401,208.77,208.66,0.03]
[1757316899517,37.66,208.76,208.71,14.41814417]
[1757316899719,14.30559401,208.75,208.71,14.41814417]
[1757316899898,15.97486135,208.72,208.71,0.03]
[1757316900098,54.37486135,208.72,208.71,0.03]
[1757316900311,55.08486135,208.72,208.71,0.03]
[1757316900513,61.7953088,208.72,208.71,0.03]
[1757316900891,23.3953088,208.72,208.71,0.03]
[1757316901108,61.8153088,208.72,208.71,0.03]
[1757316903417,16.22493376,208.72,208.71,0.03]
[1757316903634,53.89493376,208.72,208.71,0.03]
[1757316904295,51.97559401,208.72,208.71,0.03]
[1757316904497,13.59559401,208.73,208.71,0.03]
[1757316904714,38.38,208.72,208.71,0.03]
[1757316906123,13.59559401,208.74,208.71,0.69]
[1757316906318,13.59559401,208.72,208.71,0.69]
[1757316906513,51.95559401,208.72,208.71,0.69]
[1757316907321,14.12148501,208.77,208.71,7.8606046]
[1757316907506,51.95559401,208.76,208.72,2.37926734]
[1757316907707,51.95559401,208.76,208.73,0.66]
[1757316907929,51.95559401,208.76,208.71,4.82133726]
[1757316908137,51.95559401,208.76,208.71,7.2006046]
[1757316908321,13.59559401,208.76,208.71,7.8606046]
[1757316908526,13.59559401,208.76,208.74,2.37926734]
[1757316908708,51.93559401,208.75,208.74,2.37926734]
[1757316909022,51.93559401,208.75,208.74,3.03926734]
[1757316909221,11.74221767,208.77,208.72,0.66]
[1757316909405,38.34,208.75,208.72,29.03926734]
[1757316909602,38.34,208.75,208.72,2.37926734]
[1757316909803,38.34,208.75,208.72,26.0]
[1757316910009,38.34,208.75,208.71,0.03]
[1757316910010,13.59559401,208.74,208.71,0.03]
[1757316910203,13.59559401,208.72,208.71,0.03]
[1757316911419,3.03926734,208.75,208.71,0.03]
[1757316911623,13.59559401,208.72,208.71,0.69]
[1757316911805,51.93559401,208.72,208.71,0.69]
[1757316912820,13.59559401,208.72,208.71,0.03]
[1757316913121,51.91559401,208.72,208.71,0.03]
[1757316914130,13.59559401,208.75,208.71,0.69]
[1757316914318,13.59559401,208.73,208.72,0.66]
[1757316914624,38.36,208.73,208.72,0.66]
[1757316915222,38.36,208.73,208.71,0.03]
[1757316915436,40.73926734,208.73,208.71,0.03]
[1757316915724,16.63486135,208.72,208.71,0.03]
[1757316916224,0.06,208.73,208.71,0.03]
[1757316916418,51.87559401,208.72,208.71,0.03]
[1757316916805,13.59559401,208.72,208.71,0.03]
[1757316917003,51.87559401,208.72,208.71,0.03]
[1757316920025,55.59842286,208.72,208.71,0.03]
[1757316920226,56.25842286,208.72,208.71,0.03]
[1757316920427,61.04953056,208.72,208.71,0.03]
[1757316921607,55.59842286,208.72,208.71,0.03]
[1757316922431,0.06,208.73,208.71,0.03]
[1757316922637,38.22,208.72,208.71,0.69]
[1757316922935,38.22,208.72,208.71,0.03]
[1757316923726,55.53842286,208.72,208.71,0.03]
[1757316923942,56.60670171,208.72,208.71,0.03]
[1757316924119,60.32953056,208.72,208.71,0.03]
[1757316924428,60.98953056,208.72,208.71,0.03]
[1757316925409,56.19842286,208.72,208.71,0.03]
[1757316925615,51.77559401,208.72,208.71,0.03]
[1757316926025,13.59559401,208.72,208.71,0.03]
[1757316926213,51.77559401,208.72,208.71,0.03]
[1757316926413,55.49842286,208.72,208.71,0.03]
[1757316930527,41.90282885,208.72,208.71,0.03]
[1757316930727,38.18,208.72,208.71,0.03]
[1757316931231,41.90282885,208.72,208.71,0.03]
[1757316932136,0.06,208.73,208.71,0.69]
[1757316932334,38.12,208.72,208.71,0.03]
[1757316932936,38.12,208.72,208.71,0.69]
[1757316933241,38.12,208.72,208.71,0.03]
[1757316935122,38.12,208.72,208.71,0.69]
[1757316935528,0.06,208.73,208.71,4.41282885]
[1757316935735,38.06,208.72,208.71,26.69]
[1757316935935,38.06,208.72,208.71,30.41282885]
[1757316936543,38.06,208.72,208.71,9.20416611]
[1757316937947,38.06,208.72,208.71,11.87621001]
[1757316938244,0.06,208.73,208.72,26.0]
[1757316938434,0.06,208.73,208.72,33.06487275]
[1757316939834,0.06,208.73,208.72,37.85598045]
[1757316942155,0.06,208.76,208.72,49.83374971]
[1757316942445,0.06,208.76,208.75,3.72282885]
[1757316942749,0.06,208.76,208.75,6.39487275]
[1757316942949,0.06,208.76,208.75,7.06487275]
[1757316943243,0.06,208.76,208.75,11.85529191]
[1757316943746,0.06,208.76,208.75,2.6720439]
[1757316943929,0.06,208.76,208.75,32.39487275]
[1757316944345,0.06,208.76,208.75,33.06487275]
[1757316945032,0.06,208.76,208.75,37.85529191]
[1757316946934,0.06,208.76,208.75,34.13246306]
[1757316947133,0.06,208.76,208.75,37.85529191]
[1757316947839,0.06,208.76,208.75,26.0]
[1757316948247,0.06,208.76,208.75,28.66945964]
[1757316949136,4.44282885,208.76,208.71,0.03]
[1757316949341,37.88,208.75,208.72,2.66993342]
[1757316949543,37.88,208.75,208.71,4.42282885]
[1757316949544,4.38282885,208.74,208.71,0.03]
[1757316949743,4.38282885,208.74,208.72,26.0]
[1757316950441,0.66,208.73,208.71,0.03]
[1757316950649,4.38282885,208.73,208.71,0.03]
[1757316950834,4.38282885,208.72,208.71,0.03]
[1757316951033,3.72282885,208.72,208.71,0.03]
[1757316951446,3.72282885,208.73,208.71,26.03]
[1757316951646,17.97842286,208.74,208.71,26.03]
[1757316951849,0.66,208.73,208.71,0.03]
[1757316952051,3.72282885,208.72,208.71,0.03]
[1757316952254,17.31842286,208.72,208.71,0.03]
[1757316952440,17.97842286,208.72,208.71,0.03]
[1757316953043,22.76953056,208.72,208.71,0.03]
[1757316954859,17.97842286,208.72,208.71,0.03]
[1757316956642,41.56282885,208.72,208.71,0.03]
[1757316957464,37.84,208.72,208.71,0.03]
[1757316957768,41.56282885,208.72,208.71,0.03]
[1757316957942,42.22282885,208.72,208.71,0.03]
[1757316958558,41.56282885,208.72,208.71,0.03]
[1757316960559,42.22282885,208.72,208.71,0.03]
[1757316961863,60.60953056,208.72,208.71,0.03]
[1757316963864,55.75842286,208.72,208.71,0.03]
[1757316964954,60.54953056,208.72,208.71,0.03]
[1757316968962,22.76953056,208.72,208.71,0.03]
[1757316969267,60.48953056,208.72,208.71,0.03]
[1757316970374,22.76953056,208.72,208.71,0.03]
[1757316970678,60.46953056,208.72,208.71,0.03]
[1757316970961,55.67842286,208.72,208.71,0.03]
[1757316971145,55.72842286,208.72,208.71,0.03]
[1757316971951,60.51953056,208.72,208.71,0.03]
[1757316979063,60.51953056,208.72,208.68,0.03]
[1757316979064,13.59559401,208.71,208.68,0.03]
[1757316979265,17.31842286,208.69,208.68,0.03]
[1757316979470,54.93842286,208.69,208.68,0.03]
[1757316979674,55.64842286,208.69,208.68,0.03]
[1757316979873,60.4402193,208.69,208.68,0.03]
[1757316980481,59.10220534,208.69,208.68,0.03]
[1757316981157,11.92407445,208.68,208.63,0.03]
[1757316981358,11.92407445,208.65,208.54,0.03]
[1757316981562,13.59559401,208.61,208.54,0.03]
[1757316981760,25.51966846,208.6,208.54,0.03]
[1757316981957,68.66353231,208.6,208.54,0.03]
[1757316982176,31.02353231,208.6,208.54,0.03]
[1757316982481,70.58434673,208.6,208.54,0.73]
[1757316982669,68.66353231,208.6,208.54,0.73]
[1757316982980,31.02353231,208.6,208.54,0.73]
[1757316983196,68.66353231,208.6,208.54,0.73]
[1757316983375,31.02353231,208.6,208.54,0.73]
[1757316983570,68.66353231,208.6,208.54,0.73]
[1757316983774,31.02353231,208.6,208.54,0.73]
[1757316983965,68.66353231,208.6,208.54,0.73]
[1757316984484,31.02353231,208.6,208.55,0.7]
[1757316984885,67.93353231,208.6,208.55,0.7]
[1757316985064,72.61048317,208.6,208.55,0.7]
[1757316985262,34.99048317,208.6,208.55,0.7]
[1757316985461,72.61048317,208.6,208.55,0.7]
[1757316986079,30.19661932,208.6,208.56,0.73]
[1757316986379,51.21559401,208.6,208.59,0.73]
[1757316986575,53.6004089,208.6,208.59,0.73]
[1757316986772,53.6004089,208.6,208.59,0.03]
[1757316986773,58.39427275,208.6,208.59,0.03]
[1757316988161,18.38945786,208.6,208.59,0.03]
[1757316988361,58.39427275,208.6,208.59,0.03]
[1757316989080,20.77427275,208.6,208.59,0.03]
[1757316989292,58.39427275,208.6,208.59,0.03]
[1757316990780,68.64353231,208.6,208.59,0.03]
[1757316991174,68.62353231,208.6,208.59,0.03]
[1757316992164,68.60353231,208.6,208.59,0.03]
[1757316993376,67.89353231,208.6,208.59,0.03]
[1757316996282,68.57353231,208.6,208.59,0.03]
[1757316996868,13.59559401,208.59,208.56,0.03]
[1757316997176,15.9804089,208.57,208.56,0.03]
[1757316997488,55.48150008,208.57,208.56,0.03]
[1757316997787,56.16150008,208.57,208.56,0.03]
[1757316997971,60.95605346,208.57,208.56,0.03]
[1757317002976,1.92109118,208.57,208.56,0.72]
[1757317003183,37.58,208.57,208.56,0.72]
[1757317003487,2.44481489,208.6,208.56,0.72]
[1757317003688,37.58,208.59,208.56,3.10481489]
[1757317003881,0.06,208.6,208.58,26.0]
[1757317004075,37.58,208.59,208.57,0.69]
[1757317005481,2.44481489,208.6,208.57,0.69]
[1757317005704,37.58,208.58,208.57,0.69]
[1757317006980,37.58,208.58,208.57,3.07481489]
[1757317007179,0.06,208.6,208.57,7.86936827]
[1757317007494,37.58,208.59,208.58,0.69]
[1757317008681,0.06,208.6,208.59,26.0]
[1757317008879,37.64,208.6,208.59,28.38481489]
[1757317009081,0.06,208.6,208.59,33.86890856]
[1757317009792,0.06,208.6,208.59,48.26602913]
[1757317010299,0.06,208.6,208.59,45.88121424]
[1757317010476,0.06,208.6,208.59,48.26602913]
[1757317014198,0.06,208.6,208.59,45.88121424]
[1757317014378,0.06,208.6,208.59,48.26602913]
[1757317015594,0.06,208.6,208.59,128.36602913]
[1757317016186,0.06,208.6,208.59,137.90528869]
[1757317017485,0.06,208.6,208.59,102.36602913]
[1757317017910,0.06,208.6,208.59,99.98121424]
[1757317018110,0.74,208.6,208.56,0.03]
[1757317018408,37.58,208.59,208.56,0.03]
[1757317018994,37.58,208.59,208.58,26.0]
[1757317021685,37.58,208.59,208.56,0.03]
[1757317021686,38.26,208.59,208.56,0.03]
[1757317021885,0.68,208.58,208.57,26.0]
[1757317022388,3.06481489,208.58,208.56,0.03]
[1757317022714,0.68,208.58,208.56,0.03]
[1757317024405,37.58,208.59,208.56,0.03]
[1757317024599,13.59559401,208.59,208.56,0.03]
[1757317024783,37.56,208.58,208.56,0.03]
[1757317024979,0.06,208.6,208.57,0.69]
[1757317025185,37.56,208.59,208.57,2.38481489]
[1757317025395,37.56,208.59,208.56,26.03]
[1757317025600,37.56,208.59,208.56,0.03]
[1757317026805,37.56,208.58,208.57,26.71]
[1757317027006,37.56,208.58,208.57,26.0]
[1757317027507,38.26,208.58,208.56,26.03]
[1757317027812,0.7,208.57,208.56,26.03]
[1757317027991,37.56,208.58,208.56,26.03]
[1757317028713,37.56,208.58,208.56,0.74]
[1757317029012,37.56,208.58,208.56,0.03]
[1757317029914,37.56,208.57,208.56,0.74]
[1757317030702,37.56,208.57,208.56,5.53477201]
[1757317030989,37.56,208.57,208.56,7.9195869]
[1757317031414,37.56,208.58,208.56,7.9195869]
[1757317031609,37.56,208.58,208.57,2.38481489]
[1757317031793,0.06,208.6,208.57,3.09481489]
[1757317032195,0.06,208.6,208.56,0.03]
[1757317032196,38.26,208.59,208.56,0.03]
[1757317032920,0.06,208.6,208.57,0.71]
[1757317033111,37.56,208.59,208.57,2.38481489]
[1757317033318,0.06,208.6,208.58,0.71]
[1757317033622,37.56,208.59,208.56,0.03]
[1757317033823,37.56,208.59,208.56,26.03]
[1757317034113,0.7,208.58,208.56,0.03]
[1757317034615,0.7,208.57,208.56,2494.6802]
[1757317034921,0.7,208.57,208.56,2468.6802]
[1757317035215,16.6804089,208.57,208.56,2468.6802]
[1757317036812,14.29559401,208.57,208.56,2468.6802]
[1757317037810,15.9804089,208.58,208.56,2468.6802]
[1757317038019,16.6804089,208.58,208.56,2468.6802]
[1757317038400,15.9804089,208.58,208.56,2468.6802]
[1757317038598,0.7,208.57,208.56,2468.6802]
[1757317038817,3.08481489,208.57,208.56,2468.6802]
[1757317040319,4.4301079,208.57,208.56,2468.6802]
[1757317040913,9.22466128,208.57,208.56,2468.6802]
[1757317042416,37.22913116,208.57,208.56,2468.6802]
[1757317045833,74.80913116,208.57,208.56,2468.6802]
[1757317046124,33.49902326,208.57,208.56,2468.6802]
[1757317046420,74.80913116,208.57,208.56,2468.6802]
[1757317048628,74.80913116,208.57,208.56,2391.04290375]
[1757317048826,78.383452,208.57,208.56,2391.04290375]
[1757317049030,74.80913116,208.57,208.56,2391.04290375]
[1757317049522,37.22913116,208.57,208.56,2391.04290375]
[1757317049722,74.80913116,208.57,208.56,2391.04290375]
[1757317049924,74.80913116,208.57,208.56,2313.12678249]
[1757317050119,74.80913116,208.57,208.56,2261.80877854]
[1757317050324,74.80913116,208.57,208.56,2236.61533672]
[1757317050522,78.38077516,208.57,208.56,2182.72948419]
[1757317051031,78.38077516,208.57,208.56,2073.70421335]
[1757317051208,78.37996338,208.57,208.56,2043.96147246]
[1757317051407,82.10980269,208.57,208.56,1980.34405555]
[1757317051608,82.10980269,208.57,208.56,1942.70196901]
[1757317051609,84.61695569,208.57,208.56,1942.70196901]
[1757317051945,84.61695569,208.57,208.56,1859.24704425]
[1757317052122,84.61599692,208.57,208.56,1801.97198124]
[1757317052430,84.61599692,208.57,208.56,1690.14205547]
[1757317052631,47.03599692,208.57,208.56,1647.5534373]
[1757317052931,84.61599692,208.57,208.56,1559.81325696]
[1757317053241,80.88588902,208.57,208.56,1535.17607651]
[1757317053409,81.04639206,208.57,208.56,1495.28244584]
[1757317053611,84.61466013,208.57,208.56,1428.0375645]
[1757317053824,84.61466013,208.57,208.56,1390.86391724]
[1757317054030,84.61466013,208.57,208.56,1314.61983372]
[1757317054232,84.61466013,208.57,208.56,1261.75861334]
[1757317054419,84.61466013,208.57,208.56,1215.7956872]
[1757317054622,84.61466013,208.57,208.56,1129.56797358]
[1757317054822,84.61466013,208.57,208.56,1090.15818432]
[1757317055018,84.61466013,208.57,208.56,1038.47399077]
[1757317055230,84.61466013,208.57,208.56,1032.88127646]
[1757317055431,84.61466013,208.57,208.56,950.56167465]
[1757317055737,84.61466013,208.57,208.56,866.65775627]
[1757317055935,84.61466013,208.57,208.56,776.28543607]
[1757317056229,84.61466013,208.57,208.56,690.37737411]
[1757317056433,89.52419788,208.57,208.56,634.59040563]
[1757317056614,89.52419788,208.57,208.56,629.78758129]
[1757317056817,89.52419788,208.57,208.56,624.19486698]
[1757317057124,89.52419788,208.57,208.56,566.91795912]
[1757317057315,89.52419788,208.57,208.56,558.07068961]
[1757317057722,89.52419788,208.57,208.56,547.67468953]
[1757317057926,51.94419788,208.57,208.56,500.79332032]
[1757317058115,89.52419788,208.57,208.56,490.39732024]
[1757317058312,89.52419788,208.57,208.56,486.35287507]
[1757317058510,51.94419788,208.57,208.56,481.5495893]
[1757317058737,89.52419788,208.57,208.56,481.5495893]
[1757317058931,89.52419788,208.57,208.56,424.27222001]
[1757317059233,89.52419788,208.57,208.56,418.6795057]
[1757317059434,51.94419788,208.57,208.56,396.57326789]
[1757317059630,92.02858602,208.57,208.56,396.57326789]
[1757317059825,92.02858602,208.57,208.56,386.17726781]
[1757317060013,54.44858602,208.57,208.56,339.2958986]
[1757317060216,92.02858602,208.57,208.56,328.89989852]
[1757317060543,92.02858602,208.57,208.56,320.05216758]
[1757317061042,92.02858602,208.57,208.56,268.36728185]
[1757317061230,92.02858602,208.57,208.56,262.77456754]
[1757317061535,54.44858602,208.57,208.56,253.92660585]
[1757317061711,92.02858602,208.57,208.56,249.12308933]
[1757317061907,92.02858602,208.57,208.56,202.24172012]
[1757317062121,92.02858602,208.57,208.56,191.84548929]
[1757317062325,54.44858602,208.57,208.56,187.80104412]
[1757317062528,92.02858602,208.57,208.56,182.9975276]
[1757317062914,97.41771461,208.52,208.51,0.03]
[1757317063244,80.36858537,208.52,208.51,0.03]
[1757317063533,105.40880117,208.52,208.51,0.03]
[1757317063838,105.40880117,208.52,208.51,0.72]
[1757317064035,64.09869327,208.52,208.51,0.72]
[1757317064220,125.40880117,208.52,208.51,0.72]
[1757317064421,105.40880117,208.52,208.51,0.72]
[1757317065118,109.72493391,208.52,208.51,0.72]
[1757317065516,105.99482601,208.52,208.51,0.03]
[1757317065728,109.72493391,208.52,208.51,0.72]
[1757317065929,92.399232,208.52,208.51,0.72]
[1757317066134,96.1293399,208.52,208.51,0.72]
[1757317066537,54.819232,208.52,208.51,0.72]
[1757317066734,88.6691241,208.52,208.51,0.72]
[1757317067050,12.21299136,208.52,208.51,0.72]
[1757317067254,12.21299136,208.52,208.51,4.4501079]
[1757317067617,11.49299136,208.52,208.51,4.4501079]
[1757317067838,47.97299136,208.52,208.51,9.24604094]
[1757317068039,4.79750114,208.57,208.51,22.84163495]
[1757317068249,37.58,208.56,208.52,13.59559401]
[1757317068424,0.06,208.59,208.55,3.7301079]
[1757317068740,0.06,208.59,208.51,4.82593304]
[1757317068741,0.06,208.59,208.58,3.7301079]
[1757317068940,37.64,208.59,208.54,3.7301079]
[1757317069129,41.95470929,208.59,208.54,3.7301079]
[1757317069919,45.68481719,208.59,208.53,3.7301079]
[1757317070124,3.7301079,208.55,208.51,0.03]
[1757317070427,37.62,208.54,208.51,0.03]
[1757317070641,3.7301079,208.55,208.51,0.03]
[1757317070946,37.64,208.54,208.51,0.03]
[1757317071836,4.31592576,208.53,208.51,0.03]
[1757317072038,37.64,208.52,208.51,0.03]
[1757317074242,3.8356427,208.57,208.51,0.03]
[1757317074441,3.7301079,208.55,208.51,0.03]
[1757317074747,37.6,208.54,208.51,0.03]
[1757317074936,3.83637845,208.53,208.51,0.03]
[1757317075134,37.6,208.52,208.51,0.03]
[1757317075849,41.3301079,208.52,208.51,0.03]
[1757317076836,41.43656244,208.52,208.51,0.03]
[1757317079731,45.87667034,208.52,208.51,0.03]
[1757317080151,49.60677824,208.52,208.51,0.03]
[1757317080853,53.18288064,208.52,208.51,0.03]
[1757317082137,15.58288064,208.52,208.51,0.03]
[1757317082338,53.18288064,208.52,208.51,0.03]
[1757317083359,11.14277274,208.52,208.51,0.03]
[1757317083657,52.47288064,208.52,208.51,0.03]
[1757317083856,53.18288064,208.52,208.51,0.03]
[1757317084238,48.74277274,208.52,208.51,0.03]
[1757317084443,52.47288064,208.52,208.51,0.03]
[1757317085552,53.17288064,208.52,208.51,0.03]
[1757317086060,49.44277274,208.52,208.51,0.03]
[1757317086264,53.17288064,208.52,208.51,0.03]
[1757317087655,52.47288064,208.52,208.51,0.03]
[1757317088652,53.17288064,208.52,208.51,0.03]
[1757317089051,59.30680173,208.52,208.51,0.03]
[1757317089552,3.83729854,208.48,208.46,0.03]
[1757317089860,41.3101079,208.47,208.46,0.03]
[1757317090067,42.0101079,208.47,208.46,0.03]
[1757317090362,56.42660037,208.47,208.46,0.03]
[1757317090864,79.73705403,208.47,208.46,0.03]
[1757317091161,99.73705403,208.47,208.46,0.03]
[1757317091346,26.0,208.44,208.38,0.2]
[1757317091554,3.7301079,208.39,208.38,0.2]
[1757317091749,45.1690637,208.39,208.38,0.2]
[1757317093054,45.8690637,208.39,208.38,1e-08]
[1757317093254,49.44935667,208.39,208.38,1e-08]
[1757317093652,54.14588912,208.39,208.38,1e-08]
[1757317094164,26.0,208.36,208.3,0.2]
[1757317094472,3.7301079,208.31,208.3,0.2]
[1757317094652,41.3501079,208.31,208.3,0.2]
[1757317095692,45.19053802,208.31,208.3,0.2]
[1757317096348,42.16043012,208.31,208.3,0.2]
[1757317096548,71.19053802,208.31,208.3,0.2]
[1757317096949,67.46043012,208.31,208.3,0.2]
[1757317097176,71.19053802,208.31,208.3,0.2]
[1757317097348,33.57053802,208.31,208.3,0.2]
[1757317097549,67.3901079,208.31,208.3,0.2]
[1757317097749,29.7301079,208.31,208.3,0.2]
[1757317098164,67.3901079,208.31,208.3,0.2]
[1757317098469,37.66,208.31,208.3,0.2]
[1757317098655,41.3901079,208.31,208.3,0.2]
[1757317099864,45.23053802,208.31,208.3,0.2]
[1757317102485,43.89332678,208.31,208.3,0.2]
[1757317102953,41.50043012,208.31,208.3,0.2]
[1757317103353,43.89332678,208.31,208.3,0.2]
[1757317104273,41.50043012,208.31,208.3,0.2]
[1757317104468,43.89332678,208.31,208.3,0.2]
[1757317104969,40.03289666,208.31,208.3,0.2]
[1757317106077,43.87332678,208.31,208.3,0.2]
[1757317106459,41.48043012,208.31,208.3,0.2]
[1757317106655,43.87332678,208.31,208.3,0.2]
[1757317106885,44.57332678,208.31,208.3,0.2]
[1757317107066,42.18043012,208.31,208.3,0.2]
[1757317107379,44.57332678,208.31,208.3,0.2]
[1757317108279,54.14491342,208.31,208.3,1e-08]
[1757317108484,26.0,208.28,208.27,0.03]
[1757317108799,66.09289666,208.28,208.27,0.03]
[1757317109085,68.71675978,208.28,208.27,0.03]
[1757317109472,66.32386312,208.28,208.27,0.03]
[1757317109684,66.09289666,208.28,208.27,0.03]
[1757317109889,66.79289666,208.28,208.27,0.03]
[1757317110390,32.23387995,208.28,208.27,0.03]